fUSD/lending_fUSD_20260311
["ID","MTS","AMOUNT","RATE_DAILY","PERIOD"]
[408191366,1773199842268,-300.0,0.00019726,2]
[408191367,1773199842277,-300.0,0.00019726,2]
[408191368,1773199842286,-300.0,0.00019726,2]
[408191369,1773199842295,-300.0,0.00019726,2]
[408191370,1773199842304,-300.0,0.00019726,2]
[408191371,1773199842313,-300.0,0.00019726,2]
[408191372,1773199842323,-300.0,0.00019726,2]
[408191373,1773199842331,-300.0,0.00019726,2]
[408191374,1773199842340,-300.0,0.00019726,2]
[408191375,1773199842349,-300.0,0.00019726,2]
[408191376,1773199842358,-300.0,0.00019726,2]
[408191377,1773199842369,-300.0,0.00019726,2]
[408191378,1773199842379,-303.10685583,0.00019726,2]
[408191379,1773199842389,-500.0,0.00019726,2]
[408191380,1773199842398,-250.0,0.0001974,2]
[408191381,1773199842407,-6238.37132443,0.00019767,2]
[408191382,1773199842418,-250.0,0.000198,2]
[408191383,1773199842427,-2000.0,0.000198,2]
[408191384,1773199842436,-500.0,0.00019809,2]
[408191385,1773199842445,-150.23914613,0.00019809,2]
[408191386,1773199842455,-500.0,0.00019809,2]
[408191387,1773199842464,-309.8948181,0.00019809,2]
[408191388,1773199842474,-49541.73241373,0.0001981,2]
[408191389,1773199842484,-6238.37132443,0.00019811,2]
[408191390,1773199842493,-186.23,0.0001983,2]
[408191391,1773199842503,-704.2,0.00019866,2]
[408191392,1773199842515,-250.0,0.0001987,2]
[408191393,1773199842524,-500.0,0.00019899,2]
[408191394,1773199842538,-500.0,0.00019899,2]
[408191395,1773199842547,-500.0,0.00019899,2]
[408191396,1773199842557,-500.0,0.00019899,2]
[408191397,1773199842566,-500.0,0.00019899,2]
[408191398,1773199842575,-500.0,0.00019899,2]
[408191399,1773199842584,-500.0,0.00019899,2]
[408191400,1773199842592,-500.0,0.00019899,2]
[408191401,1773199842601,-500.0,0.00019899,2]
[408191402,1773199842610,-507.80320873,0.00019899,2]
[408191403,1773199842619,-500.0,0.00019899,2]
[408191404,1773199842628,-500.0,0.00019899,2]
[408191405,1773199842637,-500.0,0.00019899,2]
[408191406,1773199842645,-500.0,0.00019899,2]
[408191407,1773199842654,-500.0,0.00019899,2]
[408191408,1773199842664,-500.0,0.00019899,2]
[408191409,1773199842675,-500.0,0.00019899,2]
[408191410,1773199842685,-500.0,0.00019899,2]
[408191411,1773199842694,-500.0,0.00019899,2]
[408191412,1773199842703,-32938.1023,0.000199,2]
[408191413,1773199842715,-1000.0,0.000199,2]
[408191414,1773199842724,-4486.1846,0.000199,2]
[408191415,1773199842734,-250.0,0.000199,2]
[408191416,1773199842744,-11145.93024242,0.000199,2]
[408191417,1773199842754,-1476.36887848,0.000199,2]
[408191418,1773199842763,-197.70766094,0.000199,3]
[408191419,1773199842772,-176.04305709,0.000199,2]
[408191420,1773199842781,-5774.90029983,0.000199,2]
[408191421,1773199842790,-1607.49510153,0.000199,2]
[408191422,1773199842798,-2000.0,0.000199,2]
[408191423,1773199842808,-8050.27658682,0.000199,2]
[408191424,1773199842818,-599.44,0.00019902,2]
[408191425,1773199842827,-485.24,0.00019925,2]
[408191426,1773199842836,-152.90665268,0.0001994,2]
[408191427,1773199842845,-250.0,0.00019951,2]
[408191428,1773199842854,-250.0,0.00019961,2]
[408191429,1773199842864,-37747.5660132,0.00019977,2]
[408191430,1773199842873,-478.641031,0.0001999,2]
[408191431,1773199842882,-478.641031,0.0001999,2]
[408191432,1773199842892,-478.641031,0.0001999,2]
[408191433,1773199842901,-151.0,0.00019997,2]
[408191434,1773199842910,-1090.54690258,0.00019999,5]
[408191435,1773199842921,-501.54386851,0.00019999,2]
[408191436,1773199842930,-500.0,0.00019999,2]
[408191437,1773199842943,-204.07600257,0.00019999,5]
[408191438,1773199842952,-500.0,0.00019999,2]
[408191439,1773199842962,-500.0,0.00019999,2]
[408191440,1773199842971,-500.0,0.00019999,2]
[408191441,1773199842980,-500.0,0.00019999,2]
[408191442,1773199842990,-507.50732285,0.00019999,2]
[408191443,1773199843000,-350.0,0.00019999,2]
[408191444,1773199843010,-350.0,0.00019999,2]
[408191446,1773199843019,-304.43194707,0.00019999,2]
[408191447,1773199843028,-500.0,0.00019999,2]
[408191448,1773199843037,-500.0,0.00019999,2]
[408191449,1773199843047,-500.0,0.00019999,2]
[408191450,1773199843056,-500.0,0.00019999,2]
[408191451,1773199843065,-500.0,0.00019999,2]
[408191453,1773199843295,-500.0,0.00019999,2]
[408191454,1773199843304,-500.0,0.00019999,2]
[408191455,1773199843314,-583.8453258,0.00019999,2]
[408191456,1773199843323,-500.0,0.00019999,2]
[408191457,1773199843333,-500.0,0.00019999,2]
[408191458,1773199843342,-500.0,0.00019999,2]
[408191459,1773199843351,-500.0,0.00019999,2]
[408191460,1773199843361,-500.0,0.00019999,2]
[408191461,1773199843370,-500.0,0.00019999,2]
[408191462,1773199843380,-506.32926117,0.00019999,2]
[408191463,1773199843389,-500.0,0.00019999,2]
[408191464,1773199843398,-314.42910771,0.00019999,2]
[408191465,1773199843408,-500.0,0.00019999,2]
[408191466,1773199843417,-500.0,0.00019999,2]
[408191467,1773199843426,-527.47030383,0.00019999,2]
[408191468,1773199843435,-500.0,0.00019999,2]
[408191469,1773199843445,-500.0,0.00019999,2]
[408191470,1773199843455,-610.63586065,0.00019999,2]
[408191471,1773199843465,-507.53424196,0.00019999,2]
[408191472,1773199843475,-500.0,0.00019999,2]
[408191473,1773199843485,-500.0,0.00019999,2]
[408191475,1773199843495,-500.0,0.00019999,2]
[408191476,1773199843504,-500.0,0.00019999,2]
[408191477,1773199843513,-500.0,0.00019999,2]
[408191478,1773199843522,-500.0,0.00019999,2]
[408191479,1773199843532,-500.0,0.00019999,2]
[408191480,1773199843541,-510.41061214,0.00019999,2]
[408191481,1773199843550,-514.68332099,0.00019999,2]
[408191482,1773199843560,-500.0,0.00019999,2]
[408191483,1773199843570,-506.63695301,0.00019999,2]
[408191484,1773199843579,-500.0,0.00019999,2]
[408191485,1773199843589,-554.34014391,0.00019999,2]
[408191486,1773199843599,-500.0,0.00019999,2]
[408191487,1773199843609,-500.0,0.00019999,2]
[408191488,1773199843618,-500.0,0.00019999,2]
[408191489,1773199843627,-630.81055911,0.00019999,2]
[408191490,1773199843636,-500.0,0.00019999,2]
[408191491,1773199843645,-500.0,0.00019999,2]
[408191492,1773199843654,-500.0,0.00019999,2]
[408191493,1773199843663,-500.0,0.00019999,2]
[408191494,1773199843674,-500.0,0.00019999,2]
[408191495,1773199843686,-515.12356361,0.00019999,2]
[408191496,1773199843695,-500.0,0.00019999,2]
[408191497,1773199843704,-500.0,0.00019999,2]
[408191498,1773199843714,-530.47109549,0.00019999,2]
[408191499,1773199843727,-500.0,0.00019999,2]
[408191500,1773199843736,-500.0,0.00019999,2]
[408191501,1773199843746,-502.06591297,0.00019999,2]
[408191502,1773199843756,-500.0,0.00019999,2]
[408191503,1773199843765,-500.0,0.00019999,2]
[408191504,1773199843774,-500.789707,0.00019999,2]
[408191505,1773199843783,-500.0,0.00019999,2]
[408191506,1773199843793,-500.0,0.00019999,2]
[408191507,1773199843802,-500.0,0.00019999,2]
[408191508,1773199843811,-500.0,0.00019999,2]
[408191509,1773199843821,-500.0,0.00019999,2]
[408191510,1773199843831,-500.0,0.00019999,2]
[408191511,1773199843840,-500.0,0.00019999,2]
[408191512,1773199843849,-500.0,0.00019999,2]
[408191513,1773199843858,-500.0,0.00019999,2]
[408191514,1773199843867,-301.87454331,0.00019999,2]
[408191515,1773199843876,-510.12107787,0.00019999,2]
[408191516,1773199843885,-500.0,0.00019999,2]
[408191517,1773199843894,-539.6122178,0.00019999,2]
[408191518,1773199843904,-500.0,0.00019999,2]
[408191519,1773199843913,-500.0,0.00019999,2]
[408191520,1773199843923,-3000.0,0.00019999,2]
[408191521,1773199843932,-3000.0,0.00019999,2]
[408191522,1773199843941,-3000.0,0.00019999,2]
[408191523,1773199843950,-3000.0,0.00019999,2]
[408191524,1773199843959,-3000.0,0.00019999,2]
[408191525,1773199843968,-3000.0,0.00019999,2]
[408191526,1773199843977,-3000.0,0.00019999,2]
[408191527,1773199843986,-3000.0,0.00019999,2]
[408191528,1773199843995,-3000.0,0.00019999,2]
[408191529,1773199844004,-3000.0,0.00019999,2]
[408191530,1773199844021,-3000.0,0.00019999,2]
[408191531,1773199844032,-3000.0,0.00019999,2]
[408191532,1773199844041,-3000.0,0.00019999,2]
[408191533,1773199844050,-3000.0,0.00019999,2]
[408191534,1773199844059,-3000.0,0.00019999,2]
[408191535,1773199844068,-3000.0,0.00019999,2]
[408191536,1773199844078,-981.54307946,0.00019999,2]
[408191537,1773199844088,-4378035.61576059,0.0002,2]
[408191538,1773199844097,-635.96194257,0.0002,2]
[408191539,1773199844107,-418.84062553,0.0002,2]
[408191540,1773199844116,-487.22,0.0002,2]
[408191541,1773199844126,-2270278.27880829,0.0002,2]
[408191542,1773199844143,-946.05260061,0.0002,2]
[408191543,1773199844231,-673.3310658,0.00019856,2]
[408191544,1773199844243,-562.39994,0.00019856,2]
[408191545,1773199844255,-345.0,0.00019856,2]
[408191546,1773199844285,-39.06022985,0.00019856,2]
[408191547,1773199846013,-4618.58008878,0.00019856,2]
[408191548,1773199846024,-13.67255902,0.000199,2]
[408191580,1773200840001,500.0,8.6e-05,2]
[408191581,1773200877274,-246.2267,0.00014657,2]
[408191582,1773200877294,-74.7733,0.00014657,2]
[408191583,1773200878733,449.09,8.712e-05,2]
[408191584,1773200880213,449.09,9.17e-05,2]
[408191585,1773200880421,449.09,9.629e-05,2]
[408191586,1773200880628,449.09,0.00010087,2]
[408191587,1773200880833,449.09,0.00010546,2]
[408191588,1773200881031,449.09,0.00011004,2]
[408191589,1773200881243,449.09,0.00011463,2]
[408191590,1773200881444,449.09,0.00011921,2]
[408191591,1773200881836,449.09,0.0001238,2]
[408191592,1773200881863,449.09,0.00012838,2]
[408191593,1773200882043,449.09,0.00013297,2]
[408191594,1773200897722,-449.09,0.00013755,2]
[408191602,1773201032125,-449.09,0.00014214,2]
[408191603,1773201032135,-142.98886631,0.00014399,2]
[408191604,1773201032147,-126.63629922,0.00014399,2]
[408191605,1773201032161,-600.0,0.00014399,2]
[408191606,1773201032171,-163.56475222,0.00014584,2]
[408191607,1773201032182,-122.88577548,0.00014631,2]
[408191608,1773201032194,-304.03423716,0.00014631,2]
[408191609,1773201032205,-173.07998736,0.00014631,2]
[408191610,1773201032214,-125.78001264,0.00014631,2]
[408191611,1773201032225,-246.53600553,0.00014631,2]
[408191612,1773201032234,-449.09,0.00014672,2]
[408191613,1773201032244,-300.0,0.00014999,2]
[408191614,1773201032254,-263.27399447,0.00014999,2]
[408191615,1773201032265,-36.72600553,0.00014999,2]
[408191616,1773201032275,-294.46508676,0.00014999,2]
[408191617,1773201032287,-196.53491324,0.00014999,2]
[408191618,1773201032295,-300.0,0.00014999,2]
[408191619,1773201032305,-443.8481469,0.00014999,2]
[408191620,1773201032319,-607.56498033,0.00014999,2]
[408191621,1773201032330,-148.58687277,0.00014999,2]
[408191622,1773201032339,-449.97312723,0.00015,10]
[408191623,1773201032350,-12.02687277,0.00015,10]
[408191624,1773201032359,-250.0,0.00015,2]
[408191625,1773201032369,-500.0,0.00015,30]
[408191626,1773201032378,-40.40776292,0.00015,30]
[408191627,1773201032389,-323.3292545,0.00015,30]
[408191628,1773201032400,-243.0123064,0.00015,30]
[408191629,1773201032410,-500.0,0.00015,30]
[408191630,1773201032419,-500.0,0.00015,30]
[408191631,1773201032427,-321.58956786,0.00015,30]
[408191632,1773201032439,-178.41043214,0.00015,30]
[408191633,1773201032447,-500.0,0.00015,30]
[408191634,1773201032457,-449.09,0.00015131,2]
[408191635,1773201032466,-163.56475221,0.00015303,2]
[408191636,1773201032475,-500.0,0.00015373,2]
[408191637,1773201032484,-300.0,0.00015389,2]
[408191638,1773201032493,-162.0,0.0001539,2]
[408191639,1773201032502,-150.99,0.0001539,2]
[408191640,1773201032512,-387.95987029,0.0001539,2]
[408191641,1773201032524,-612.03012971,0.0001539,2]
[408191642,1773201032533,-24.62082932,0.0001539,2]
[408191643,1773201032550,-8288.35917068,0.0001539,2]
[408191644,1773201032559,-9999.99,0.0001539,2]
[408191645,1773201032569,-9999.99,0.0001539,2]
[408191646,1773201032578,-248.96637254,0.00015523,2]
[408191647,1773201032588,-2423.33504719,0.00015567,2]
[408191648,1773201032596,-449.09,0.0001559,2]
[408191649,1773201032605,-500.0,0.00015635,2]
[408191650,1773201032615,-600.0,0.00015635,2]
[408191651,1773201032624,-254.29460697,0.00015635,2]
[408191652,1773201032633,-500.0,0.00015682,2]
[408191653,1773201032642,-500.0,0.00015682,2]
[408191654,1773201032651,-500.0,0.00015682,2]
[408191655,1773201032660,-503.26645979,0.00015921,2]
[408191656,1773201032670,-163.56475221,0.00016022,2]
[408191657,1773201032679,-449.09,0.00016048,2]
[408191658,1773201032688,-7999.09,0.00016116,2]
[408191659,1773201032697,-150.88312785,0.00016116,2]
[408191660,1773201032706,-150.99,0.00016122,2]
[408191661,1773201032715,-499.99,0.00016122,2]
[408191662,1773201032726,-299.99,0.00016122,4]
[408191663,1773201032934,-305.70426919,0.00016122,2]
[408191664,1773201032945,-4213.39930839,0.00016122,2]
[408191665,1773201032954,-500.0,0.00016122,2]
[408191666,1773201032964,-250.0,0.00016122,2]
[408191667,1773201032973,-210.45,0.00016189,2]
[408191668,1773201032983,-501.57053664,0.0001623,2]
[408191669,1773201032992,-1000.0,0.0001623,2]
[408191670,1773201033002,-502.79953242,0.0001623,2]
[408191671,1773201033014,-251.0,0.00016416,2]
[408191672,1773201033023,-420.0,0.00016416,2]
[408191673,1773201033033,-1000.0,0.00016466,7]
[408191674,1773201033042,-1600.0,0.00016485,2]
[408191675,1773201033053,-1680.0,0.00016499,2]
[408191676,1773201033063,-449.09,0.00016507,2]
[408191677,1773201033072,-510.0,0.00016512,2]
[408191678,1773201033084,-501.97456647,0.00016689,2]
[408191679,1773201033093,-319.65345292,0.00016689,2]
[408191680,1773201033103,-500.0,0.00016689,2]
[408191681,1773201033112,-503.07726855,0.00016689,2]
[408191682,1773201033121,-501.38283497,0.00016689,2]
[408191683,1773201033131,-558.0,0.00016712,2]
[408191684,1773201033140,-1004.90829082,0.00016778,2]
[408191685,1773201033149,-449.09,0.00016965,2]
[408191686,1773201033159,-502.0,0.00017,2]
[408191687,1773201033168,-667.0,0.00017182,2]
[408191688,1773201033178,-164.0,0.000172,2]
[408191689,1773201033187,-1002.91011337,0.00017237,2]
[408191690,1773201033197,-296.34184863,0.00017363,2]
[408191691,1773201033207,-200.0,0.00017414,2]
[408191692,1773201033216,-4000.0,0.00017423,2]
[408191693,1773201033225,-2000.0,0.00017423,2]
[408191694,1773201033234,-449.09,0.00017424,2]
[408191695,1773201033244,-4399.57,0.00017526,2]
[408191696,1773201033254,-296.32,0.00017561,2]
[408191697,1773201033262,-11283.19418939,0.00017628,2]
[408191698,1773201033275,-3031.8631592,0.00017628,2]
[408191699,1773201033286,-12372.53301719,0.00017628,2]
[408191705,1773201038244,-488.41431202,0.00017627,2]
[408191706,1773201038298,-11.58568798,0.00017627,2]
[408191707,1773201038309,-500.0,0.00017627,2]
[408191708,1773201038318,-500.0,0.00017627,2]
[408191709,1773201038328,-500.0,0.00017627,2]
[408191710,1773201038338,-500.0,0.00017627,2]
[408191711,1773201038347,-328.43443361,0.00017627,2]
[408191712,1773201038358,-513.8861005,0.00017627,2]
[408191713,1773201038368,-57865.94363422,0.00017628,2]
[408191714,1773201038377,-192.65455143,0.00017675,2]
[408191715,1773201038387,-866.0,0.00017713,2]
[408191716,1773201038396,-2810.86,0.00017728,2]
[408191717,1773201038405,-14056.32,0.00017728,2]
[408191718,1773201038414,-4000.0,0.00017859,2]
[408191719,1773201038424,-587.0,0.00017966,2]
[408191720,1773201038434,-500.0,0.00017987,2]
[408191721,1773201038443,-500.0,0.00017987,2]
[408191722,1773201038452,-547.8515948,0.00017987,2]
[408191723,1773201038462,-151.0,0.00017987,2]
[408191724,1773201038471,-500.0,0.00017987,2]
[408191725,1773201038480,-151.0,0.00017987,2]
[408191726,1773201038490,-151.0,0.00017987,2]
[408191727,1773201038499,-455.32447519,0.00017987,2]
[408191728,1773201038508,-151.0,0.00017987,2]
[408191729,1773201038517,-151.0,0.00017987,2]
[408191730,1773201038527,-268.73403904,0.00017987,2]
[408191731,1773201038537,-151.0,0.00017987,2]
[408191732,1773201038548,-162.96345413,0.00017987,2]
[408191733,1773201038558,-253.00298009,0.00017987,2]
[408191734,1773201038568,-177.68,0.00018064,2]
[408191735,1773201038578,-2351.0,0.00018149,2]
[408191736,1773201038587,-150.0,0.00018256,2]
[408191737,1773201038596,-296.343633,0.00018258,2]
[408191738,1773201038605,-4000.0,0.00018295,2]
[408191739,1773201038615,-3240.0,0.00018528,2]
[408191740,1773201038625,-1600.0,0.00018545,2]
[408191741,1773201038634,-2166.24,0.00018575,2]
[408191742,1773201038643,-4000.0,0.0001873,2]
[408191743,1773201038652,-475.22757974,0.00019,2]
[408191744,1773201038662,-586.0,0.00019005,2]
[408191745,1773201038671,-2807.0,0.0001904,2]
[408191746,1773201038680,-4000.0,0.00019166,2]
[408191747,1773201038689,-851.0,0.0001936,2]
[408191748,1773201038698,-312.07,0.00019392,3]
[408191749,1773201038707,-4139.3298,0.00019402,2]
[408191750,1773201038716,-63805.99629331,0.00019402,2]
[408191751,1773201038751,-0.63386901,0.00019402,2]
[408191752,1773201038767,-436.75223375,0.00019402,2]
[408191784,1773201043738,-34149.66930393,0.00019402,2]
[408191785,1773201043748,-6687.55814554,0.00019402,2]
[408191786,1773201043757,-500.87506024,0.00019473,2]
[408191787,1773201043767,-1044.94081052,0.00019502,2]
[408191788,1773201043776,-1096.41254716,0.00019502,2]
[408191789,1773201043786,-1050.64738596,0.00019502,2]
[408191790,1773201043795,-1142.77404944,0.00019502,2]
[408191791,1773201043804,-1090.68648741,0.00019502,2]
[408191792,1773201043813,-1147.31690851,0.00019502,2]
[408191793,1773201043824,-1027.23249712,0.00019502,2]
[408191794,1773201043833,-1065.81794697,0.00019502,2]
[408191795,1773201043843,-1062.23455009,0.00019502,2]
[408191797,1773201043851,-1054.91455488,0.00019502,2]
[408191799,1773201043861,-1095.43846403,0.00019502,2]
[408191800,1773201043870,-1116.11626672,0.00019502,2]
[408191801,1773201043879,-1082.59882235,0.00019502,2]
[408191802,1773201043889,-1003.42276708,0.00019502,2]
[408191803,1773201043899,-1141.1532813,0.00019502,2]
[408191804,1773201043908,-1082.56896447,0.00019502,2]
[408191805,1773201043918,-1869.14039832,0.00019502,2]
[408191806,1773201043927,-573.87997549,0.00019573,2]
[408191807,1773201043936,-250.0,0.00019592,2]
[408191808,1773201043946,-1143.38792019,0.00019599,2]
[408191809,1773201043955,-1138.08307937,0.00019599,2]
[408191810,1773201043964,-1148.96206972,0.00019599,2]
[408191811,1773201043973,-1004.80123899,0.00019599,2]
[408191812,1773201043983,-1054.91234,0.000196,2]
[408191813,1773201043993,-823.0,0.00019663,2]
[408191814,1773201044003,-10000.0,0.000199,2]
[408191815,1773201044015,-32938.1023,0.000199,2]
[408191816,1773201044024,-1000.0,0.000199,2]
[408191817,1773201044034,-162.0,0.000199,2]
[408191818,1773201044043,-162.0,0.000199,4]
[408191819,1773201044054,-162.0,0.000199,3]
[408191820,1773201044063,-1178.26205422,0.000199,2]
[408191821,1773201044073,-2500.0,0.000199,2]
[408191822,1773201044084,-3292.0,0.00019964,2]
[408191823,1773201044093,-258.14886271,0.00019999,2]
[408191824,1773201044102,-170.65914074,0.00019999,2]
[408191825,1773201044113,-566.92637267,0.00019999,2]
[408191826,1773201044122,-121946.59087807,0.0002,2]
[408191827,1773201044131,-168.76272261,0.0002,2]
[408191828,1773201044140,-150.0,0.0002,7]
[408191829,1773201044149,-172.2437,0.0002,2]
[408191830,1773201044159,-172.2437,0.0002,2]
[408191831,1773201044168,-172.2437,0.0002,2]
[408191832,1773201044177,-172.2437,0.0002,2]
[408191833,1773201044186,-172.2437,0.0002,2]
[408191834,1773201044195,-172.2437,0.0002,2]
[408191835,1773201044204,-260.99271339,0.0002,2]
[408191836,1773201044213,-151.0,0.0002,2]
[408191837,1773201044222,-300.0,0.0002,2]
[408191838,1773201044231,-151.0,0.0002,2]
[408191839,1773201044242,-152.0,0.0002,2]
[408191840,1773201044251,-1988.637184,0.0002,2]
[408191841,1773201044259,-7137.6674074,0.0002,2]
[408191842,1773201044269,-1546.7705114,0.0002,2]
[408191843,1773201044279,-151.0,0.0002,2]
[408191844,1773201044288,-8093.1900905,0.0002,2]
[408191845,1773201044298,-500.0,0.0002,2]
[408191846,1773201044306,-250.0,0.0002,2]
[408191847,1773201044316,-194.0,0.00020106,2]
[408191848,1773201044325,-223.0,0.00020134,2]
[408191849,1773201044334,-194.0,0.00020141,2]
[408191850,1773201044343,-194.0,0.00020252,2]
[408191851,1773201044353,-168.0,0.00020261,2]
[408191852,1773201044362,-168.0,0.00020276,2]
[408191853,1773201044371,-223.0,0.00020313,2]
[408191854,1773201044380,-502.0,0.00020316,5]
[408191855,1773201044389,-160.0,0.00020369,2]
[408191856,1773201044399,-172.95802059,0.00020369,2]
[408191857,1773201044408,-1000.0,0.0002037,2]
[408191858,1773201044417,-223.0,0.00020437,2]
[408191859,1773201044427,-168.0,0.00020443,2]
[408191860,1773201044437,-223.0,0.00020488,2]
[408191861,1773201044447,-194.0,0.00020516,2]
[408191862,1773201044456,-194.0,0.00020518,2]
[408191863,1773201044467,-3853.0,0.00020543,2]
[408191864,1773201044477,-157.83,0.00020548,2]
[408191865,1773201044486,-223.0,0.00020559,2]
[408191866,1773201044496,-194.0,0.00020574,2]
[408191867,1773201044506,-203.93,0.000206,2]
[408191868,1773201044515,-254.36,0.000206,2]
[408191869,1773201044524,-1600.0,0.00020606,2]
[408191870,1773201044533,-194.0,0.00020612,2]
[408191871,1773201044543,-1000.0,0.00020644,2]
[408191872,1773201044552,-186.23,0.00020692,2]
[408191873,1773201044561,-194.0,0.00020694,2]
[408191874,1773201044570,-223.0,0.00020704,2]
[408191875,1773201044579,-1262.83,0.00020732,2]
[408191876,1773201044588,-4930.8,0.00020799,2]
[408191877,1773201044598,-223.0,0.00020839,2]
[408191878,1773201044606,-1000.0,0.00020918,2]
[408191879,1773201044615,-2000.0,0.00020947,2]
[408191880,1773201044625,-194.0,0.00020964,2]
[408191881,1773201044634,-3853.0,0.00020975,2]
[408191882,1773201044643,-168.0,0.00020996,2]
[408191883,1773201044652,-168.0,0.00021024,2]
[408191884,1773201044661,-194.0,0.00021027,2]
[408191885,1773201044670,-223.0,0.00021071,2]
[408191886,1773201044679,-1999.0,0.00021192,2]
[408191887,1773201044688,-533.36,0.00021288,2]
[408191888,1773201044697,-449.76,0.00021388,2]
[408191889,1773201044706,-1000.0,0.00021466,2]
[408191890,1773201044716,-498.0,0.0002152,2]
[408191891,1773201044725,-533.36,0.00021562,2]
[408191892,1773201044734,-150.0,0.00021644,2]
[408191893,1773201044743,-150.0,0.00021644,2]
[408191894,1773201044752,-150.0,0.00021644,2]
[408191895,1773201044762,-500.0,0.00021644,2]
[408191896,1773201044771,-500.0,0.00021644,2]
[408191897,1773201044780,-150.0,0.00021644,2]
[408191898,1773201044789,-150.0,0.00021644,2]
[408191899,1773201044799,-150.0,0.00021644,2]
[408191900,1773201044808,-500.0,0.00021644,2]
[408191901,1773201044817,-500.0,0.00021644,2]
[408191902,1773201044826,-500.0,0.00021644,2]
[408191903,1773201044836,-500.0,0.00021644,2]
[408191904,1773201044845,-500.0,0.00021644,2]
[408191905,1773201044854,-500.0,0.00021644,2]
[408191906,1773201044863,-150.0,0.00021644,2]
[408191907,1773201044872,-500.0,0.00021644,2]
[408191908,1773201044881,-500.0,0.00021644,2]
[408191909,1773201044890,-150.0,0.00021644,2]
[408191910,1773201044900,-500.0,0.00021644,2]
[408191911,1773201044909,-500.0,0.00021644,2]
[408191912,1773201044918,-500.0,0.00021644,2]
[408191913,1773201044928,-500.0,0.00021644,2]
[408191914,1773201044937,-151.61662366,0.00021644,2]
[408191915,1773201044946,-150.0,0.00021644,2]
[408191916,1773201044955,-205.69153051,0.00021644,2]
[408191917,1773201044964,-150.0,0.00021644,2]
[408191918,1773201044973,-150.0,0.00021644,2]
[408191919,1773201044982,-500.0,0.00021644,2]
[408191920,1773201044991,-150.0,0.00021644,2]
[408191921,1773201045001,-500.0,0.00021644,2]
[408191922,1773201045014,-150.0,0.00021644,2]
[408191923,1773201045024,-500.0,0.00021644,2]
[408191924,1773201045035,-150.0,0.00021644,2]
[408191925,1773201045045,-252.392087,0.00021644,2]
[408191926,1773201045055,-500.0,0.00021644,2]
[408191927,1773201045065,-150.0,0.00021644,2]
[408191928,1773201045076,-150.0,0.00021699,2]
[408191929,1773201045085,-150.0,0.00021699,2]
[408191930,1773201045094,-150.0,0.00021699,2]
[408191931,1773201045103,-500.0,0.00021699,2]
[408191932,1773201045112,-500.0,0.00021699,2]
[408191933,1773201045120,-202.58174361,0.00021699,2]
[408191934,1773201045131,-250.0,0.00021699,2]
[408191935,1773201045140,-150.0,0.00021699,2]
[408191936,1773201045151,-500.0,0.00021699,2]
[408191937,1773201045161,-648.99053488,0.00021699,2]
[408191938,1773201045170,-500.0,0.00021699,2]
[408191939,1773201045179,-500.0,0.00021699,2]
[408191940,1773201045189,-500.0,0.00021699,2]
[408191941,1773201045199,-500.0,0.00021699,2]
[408191942,1773201045209,-150.0,0.00021699,2]
[408191943,1773201045219,-500.0,0.00021699,2]
[408191944,1773201045229,-551.04601421,0.00021699,2]